bitfinex/quotes_SOLUSD_20260118
["timestamp","ask_amount","ask_price","bid_price","bid_amount"]
[1768698001572,2.09796629,143.2,143.16,5.19410331]
[1768698003885,6.98372791,143.19,143.16,5.19410331]
[1768698004064,2.09796629,143.17,143.15,3.2408016]
[1768698004980,6.98372791,143.19,143.15,3.2408016]
[1768698005184,9.08286661,143.17,143.15,3.2408016]
[1768698005386,9.0840597,143.17,143.15,3.2408016]
[1768698008186,24.44304769,143.19,143.15,3.2408016]
[1768698008387,2.09915938,143.17,143.15,3.2408016]
[1768698008897,2.09915938,143.17,143.14,3.2408016]
[1768698009808,9.08430746,143.17,143.13,3.2408016]
[1768698030523,17.46123828,143.18,143.14,2.93896579]
[1768698030727,19.56039766,143.18,143.15,2.93896579]
[1768698031025,17.46123828,143.18,143.15,2.93896579]
[1768698031224,19.56039766,143.18,143.15,2.93896579]
[1768698031407,19.56039766,143.18,143.13,2.93896579]
[1768698031602,19.56039766,143.18,143.12,6.98705827]
[1768698031808,2.09915938,143.13,143.1,2.93896579]
[1768698032111,15.3,143.17,143.1,2.93896579]
[1768698032304,2.09915938,143.15,143.1,2.93896579]
[1768698032626,9.08541122,143.14,143.1,9.92706552]
[1768698033330,6.98625184,143.14,143.11,2.93896579]
[1768698036524,2.09915938,143.14,143.11,2.93896579]
[1768698037613,9.08567611,143.14,143.11,2.93896579]
[1768698038220,6.98651673,143.14,143.11,2.93896579]
[1768698038449,9.08567611,143.14,143.11,2.93896579]
[1768698041334,2.09915938,143.15,143.11,2.93896579]
[1768698042444,24.44816987,143.16,143.11,2.93896579]
[1768698042740,2.09915938,143.15,143.11,2.93896579]
[1768698043636,6.98616738,143.14,143.11,2.93896579]
[1768698046946,9.08532676,143.14,143.1,3.13633401]
[1768698047136,6.98616738,143.14,143.1,3.13633401]
[1768698048330,2.09915938,143.14,143.1,3.13633401]
[1768698050149,6.98665548,143.13,143.1,3.13633401]
[1768698052048,9.08581486,143.13,143.1,3.13633401]
[1768698053366,6.98665548,143.13,143.1,3.13633401]
[1768698053539,9.08581486,143.13,143.1,3.13633401]
[1768698055457,6.98665548,143.13,143.1,3.13633401]
[1768698061765,9.08581486,143.13,143.08,2.90007416]
[1768698062569,26.55245358,143.13,143.08,2.90007416]
[1768698062747,26.55245358,143.13,143.08,9.88880514]
[1768698063162,9.08581486,143.13,143.09,2.90007416]
[1768698064267,6.98665548,143.13,143.1,2.90007416]
[1768698064566,15.3,143.14,143.1,2.09915938]
[1768698064864,15.3,143.14,143.11,2.90007416]
[1768698066444,6.98665548,143.13,143.11,2.90007416]
[1768698071866,11.27773963,143.13,143.1,2.90007416]
[1768698073266,22.286365,143.14,143.1,2.90007416]
[1768698073470,24.4512424,143.14,143.1,2.90007416]
[1768698074450,24.4512424,143.14,143.11,2.90007416]
[1768698076971,26.55113205,143.14,143.11,2.90007416]
[1768698081187,2.09988965,143.13,143.11,2.90007416]
[1768698081883,9.08656439,143.13,143.11,2.90007416]
[1768698082185,11.14025785,143.13,143.1,2.93872634]
[1768698084302,6.98667474,143.13,143.1,2.93872634]
[1768698087701,24.3862548,143.14,143.1,9.92678118]
[1768698087999,24.3862548,143.14,143.11,2.93872634]
[1768698089109,22.28636515,143.14,143.11,2.93872634]
[1768698089391,24.3862548,143.14,143.11,2.93872634]
[1768698091302,22.28636515,143.14,143.11,2.93872634]
[1768698091507,15.3,143.14,143.12,2.93872634]
[1768698091666,22.28621284,143.14,143.12,2.90872635]
[1768698091867,1.9729846,143.13,143.09,2.09988965]
[1768698092086,1.9729846,143.13,143.08,17.47220388]
[1768698092264,1.9729846,143.13,143.09,2.09988965]
[1768698093801,1.9729846,143.13,143.1,2.93872634]
[1768698094390,1.9729846,143.13,143.1,9.92659351]
[1768698109634,8.78040722,143.14,143.11,2.83930157]
[1768698111839,10.88029687,143.14,143.11,2.83930157]
[1768698112223,1.76933693,143.12,143.09,2.71158906]
[1768698113428,3.86922658,143.12,143.09,2.71158906]
[1768698113820,1.76933693,143.12,143.09,2.71158906]
[1768698114217,1.76933693,143.12,143.09,9.70013454]
[1768698117348,1.76933693,143.12,143.09,9.70018389]
[1768698118424,5.19087612,143.11,143.01,0.1]
[1768698118745,5.19087612,143.11,143.01,2.81158906]
[1768698118746,2.09988965,143.08,143.01,2.81158906]
[1768698119047,20.49087612,143.07,143.01,2.81158906]
[1768698119212,20.49087612,143.07,143.0,0.1]
[1768698119213,20.64408856,143.07,143.0,0.1]
[1768698119418,20.64408856,143.07,143.01,2.71158906]
[1768698119419,2.09988965,143.06,143.01,2.71158906]
[1768698120312,24.38953564,143.07,143.02,6.99165996]
[1768698120518,6.98964599,143.07,143.03,2.71158906]
[1768698120719,15.3,143.09,143.03,2.09988965]
[1768698120920,2.09988965,143.09,143.04,2.71158906]
[1768698121938,9.08860199,143.09,143.05,2.71158906]
[1768698122141,2.09988965,143.07,143.03,6.99137628]
[1768698122343,2.09988965,143.07,143.03,9.70296534]
[1768698123450,6.98871234,143.09,143.05,2.71158906]
[1768698123656,2.09988965,143.08,143.05,2.71158906]
[1768698124032,9.08860199,143.09,143.05,2.71158906]
[1768698124220,2.09988965,143.08,143.05,2.71158906]
[1768698124728,9.08898935,143.08,143.05,2.71158906]
[1768698125153,6.98812019,143.1,143.05,2.71158906]
[1768698125458,2.09988965,143.08,143.05,2.71158906]
[1768698125624,6.98812019,143.1,143.05,2.71158906]
[1768698125625,6.98812019,143.1,143.06,2.71158906]
[1768698126018,2.09988965,143.09,143.06,2.71158906]
[1768698126349,6.98812019,143.1,143.06,2.71158906]
[1768698126535,2.09988965,143.09,143.06,2.71158906]
[1768698128644,9.08853561,143.09,143.06,2.71158906]
[1768698129422,9.09010185,143.09,143.06,2.71158906]
[1768698129841,2.10145589,143.09,143.06,2.71158906]
[1768698131675,2.10145589,143.08,143.06,2.71158906]
[1768698131830,9.09028973,143.09,143.06,2.71158906]
[1768698132962,2.10145589,143.09,143.06,2.71158906]
[1768698133272,2.10145589,143.1,143.07,2.71158906]
[1768698137061,17.46696149,143.13,143.08,2.71158906]
[1768698137234,5.16548673,143.12,143.08,2.71158906]
[1768698137434,2.10145589,143.12,143.08,2.71158906]
[1768698139175,9.08906911,143.12,143.08,2.71158906]
[1768698140354,2.10145589,143.12,143.08,2.71158906]
[1768698140746,2.10145589,143.12,143.09,2.71158906]
[1768698142458,9.0887401,143.12,143.08,17.82129625]
[1768698142659,9.0887401,143.12,143.08,22.28908048]
[1768698142849,9.0887401,143.12,143.09,2.52129625]
[1768698144657,6.98728421,143.12,143.09,2.52129625]
[1768698144862,9.0887401,143.12,143.09,2.52129625]
[1768698149185,17.46696149,143.13,143.09,2.52129625]
[1768698149370,7.26992126,143.12,143.09,2.52129625]
[1768698149548,5.16846537,143.11,143.09,2.52129625]
[1768698149748,2.10145589,143.12,143.09,2.52129625]
[1768698149959,5.16881453,143.11,143.09,2.52129625]
[1768698150165,2.10145589,143.12,143.09,2.52129625]
[1768698150471,5.16935813,143.11,143.09,2.52129625]
[1768698150646,9.08866477,143.12,143.09,2.52129625]
[1768698150846,5.1693597,143.11,143.09,2.52129625]
[1768698151059,9.08866477,143.12,143.09,2.52129625]
[1768698151372,5.16993198,143.11,143.09,2.52129625]
[1768698151563,9.08866477,143.12,143.09,2.52129625]
[1768698151767,5.16993041,143.11,143.09,2.52129625]
[1768698151946,9.08866477,143.12,143.09,2.52129625]
[1768698152269,14.25903291,143.11,143.05,2.52129625]
[1768698152572,2.10145589,143.1,143.08,15.3]
[1768698154574,6.98726967,143.12,143.08,22.28906881]
[1768698154759,2.10145589,143.1,143.08,22.28906881]
[1768698155580,6.98726967,143.12,143.08,22.28906881]
[1768698155753,5.17285908,143.11,143.08,22.28906881]
[1768698155954,2.10145589,143.1,143.08,22.28906881]
[1768698156170,2.10145589,143.11,143.08,24.96919445]
[1768698160261,5.17736892,143.1,143.08,24.96919445]
[1768698160573,2.10145589,143.11,143.08,24.96919445]
[1768698160891,5.17751414,143.1,143.08,24.96919445]
[1768698161071,2.10145589,143.11,143.08,24.96919445]
[1768698161461,5.17841848,143.1,143.08,24.96919445]
[1768698161661,2.10145589,143.11,143.08,24.96919445]
[1768698161968,5.17841848,143.1,143.08,24.96919445]
[1768698162170,2.10145589,143.11,143.08,24.96919445]
[1768698162370,5.1792979,143.1,143.08,24.96919445]
[1768698162586,2.10145589,143.11,143.08,24.96919445]
[1768698166085,6.98731806,143.12,143.08,24.96919445]
[1768698166287,2.10145589,143.11,143.08,9.66919445]
[1768698166466,2.10145589,143.11,143.08,24.96919445]
[1768698167188,17.46696149,143.13,143.08,24.96919445]
[1768698167395,2.10145589,143.11,143.08,24.96919445]
[1768698168264,2.10145589,143.11,143.09,2.68012564]
[1768698168578,2.10145589,143.11,143.09,2.65012565]
[1768698170781,2.10145589,143.11,143.09,2.62012566]
[1768698171475,7.01718417,143.12,143.09,2.62012566]
[1768698171476,9.11864006,143.12,143.09,2.62012566]
[1768698172671,2.13167564,143.11,143.08,15.3]
[1768698172869,2.13167564,143.11,143.08,22.28900219]
[1768698173694,0.03021975,143.11,143.08,22.28900219]
[1768698173879,0.03021975,143.11,143.08,24.93226229]
[1768698174077,2.13175811,143.12,143.08,24.93226229]
[1768698174283,5.1864683,143.11,143.09,2.6432601]
[1768698174482,2.13175811,143.12,143.09,2.6432601]
[1768698174684,5.18688892,143.11,143.09,2.6432601]
[1768698174991,2.13175811,143.12,143.09,2.6432601]
[1768698177997,2.13175811,143.12,143.09,9.63159565]
[1768698178576,0.03030222,143.12,143.09,9.63159565]
[1768698179394,7.01714187,143.14,143.1,2.6432601]
[1768698179595,7.28926933,143.13,143.1,2.6432601]
[1768698179799,5.18780244,143.12,143.1,2.6432601]
[1768698180098,2.10145589,143.13,143.1,2.6432601]
[1768698180297,2.10145589,143.14,143.11,2.6432601]
[1768698180879,22.80601554,143.17,143.12,2.6432601]
[1768698180880,4.73560626,143.17,143.12,2.6432601]
[1768698181081,2.63415037,143.16,143.12,2.6432601]
[1768698181274,4.73560626,143.16,143.12,2.6432601]
[1768698181682,4.73560626,143.16,143.13,2.6432601]
[1768698182207,4.73560626,143.16,143.13,9.62970276]
[1768698182575,4.73560626,143.15,143.12,6.98701601]
[1768698183793,2.63415037,143.12,143.09,6.98860856]
[1768698184102,4.73560626,143.12,143.09,22.28860856]
[1768698184403,4.73560626,143.12,143.09,6.98860856]
[1768698184699,2.10145589,143.11,143.09,6.98860856]
[1768698189995,17.46368615,143.16,143.09,6.98860856]
[1768698189996,2.63415037,143.2,143.1,4.74471599]
[1768698190200,4.73560626,143.17,143.12,2.6432601]
[1768698190800,4.73560626,143.16,143.12,2.6432601]
[1768698191101,2.63415037,143.16,143.12,17.9432601]
[1768698191287,2.09995205,143.14,143.1,2.6432601]
[1768698191491,2.09995205,143.14,143.12,6.98714365]
[1768698191689,2.63415037,143.25,143.14,2.6432601]
[1768698191881,0.93419832,143.28,143.23,2.6432601]
[1768698192078,0.93419832,143.28,143.24,2.6432601]
[1768698192281,0.93419832,143.28,143.21,18.9428131]
[1768698192282,2.09995205,143.26,143.21,3.6428131]
[1768698192495,2.09995205,143.26,143.21,18.9428131]
[1768698192496,4.73410242,143.26,143.21,18.9428131]
[1768698192889,2.63415037,143.26,143.21,3.6428131]
[1768698193090,4.73410242,143.26,143.21,3.6428131]
[1768698193298,4.73410242,143.26,143.22,6.98226504]
[1768698193504,2.63415037,143.26,143.22,6.98226504]
[1768698193697,11.71345187,143.28,143.22,6.98226504]
[1768698194004,11.71345187,143.28,143.22,9.08221709]
[1768698194223,11.71345187,143.28,143.23,2.6432601]
[1768698194402,9.61349982,143.28,143.23,2.6432601]
[1768698194609,2.09995205,143.27,143.23,2.6432601]
[1768698195000,2.09995205,143.27,143.23,9.62494581]
[1768698197790,2.09995205,143.27,143.24,2.6432601]
[1768698198483,9.61349982,143.28,143.24,2.6432601]
[1768698198681,2.09995205,143.27,143.24,2.6432601]
[1768698199607,11.7139477,143.27,143.24,2.6432601]
[1768698199992,4.73410242,143.28,143.25,2.6432601]
[1768698201413,4.0352904,143.28,143.25,2.6432601]
[1768698201590,1.93533835,143.28,143.25,2.6432601]
[1768698202309,4.0352904,143.28,143.25,2.6432601]
[1768698202511,11.01469547,143.28,143.25,2.6432601]
[1768698202813,7.17684113,143.34,143.29,2.55392004]
[1768698203196,2.09995205,143.32,143.29,2.55392004]
[1768698204190,9.56731025,143.33,143.29,2.55392004]
[1768698204385,0.2,143.36,143.32,2.55392004]
[1768698204606,0.2,143.36,143.33,2.55392004]
[1768698205004,4.89033124,143.36,143.32,2.55392004]
[1768698205319,2.09995205,143.35,143.32,2.55392004]
[1768698206400,9.07605164,143.35,143.32,2.55392004]
[1768698207105,6.97609959,143.35,143.32,2.55392004]
[1768698207314,9.07605164,143.35,143.32,2.55392004]
[1768698207689,9.2755589,143.36,143.32,2.55392004]
[1768698208103,11.86593809,143.36,143.32,2.55392004]
[1768698208298,2.09995205,143.35,143.32,2.55392004]
[1768698208607,9.07615842,143.35,143.32,2.55392004]
[1768698209010,2.09995205,143.34,143.3,2.55392004]
[1768698210511,9.07674198,143.34,143.3,2.55392004]
[1768698211212,6.97678993,143.34,143.3,2.55392004]
[1768698211510,2.09995205,143.31,143.24,22.79622061]
[1768698211712,2.09995205,143.31,143.25,17.37995205]
[1768698212518,9.07819606,143.31,143.26,6.98023578]
[1768698212696,2.09995205,143.29,143.22,17.20176573]
[1768698212888,2.09995205,143.28,143.22,17.37995205]
[1768698213086,0.00125668,143.28,143.22,17.37995205]
[1768698213498,2.09995205,143.29,143.23,1.81220813]
[1768698213905,9.07913993,143.29,143.25,1.81220813]
[1768698214315,2.09995205,143.28,143.25,1.81220813]
[1768698219024,9.07913993,143.29,143.25,1.81220813]
[1768698219704,6.97918788,143.29,143.25,1.81220813]
[1768698219904,9.07913993,143.29,143.25,1.81220813]
[1768698220827,11.46059513,143.29,143.25,1.81220813]
[1768698221034,2.09995205,143.28,143.25,1.81220813]
[1768698221500,4.48140725,143.27,143.23,8.59717923]
[1768698222120,2.09995205,143.26,143.23,1.61554822]
[1768698222507,1e-08,143.26,143.23,1.61554822]
[1768698222920,11.46165127,143.27,143.23,1.61554822]
[1768698223934,11.46186395,143.26,143.22,1.56523992]
[1768698224108,2.09995205,143.25,143.22,1.56523992]
[1768698224303,11.46186395,143.26,143.22,1.56523992]
[1768698226532,11.46186395,143.26,143.22,8.54748992]
[1768698228302,9.3619119,143.26,143.22,8.54748992]
[1768698228503,2.3814552,143.25,143.22,8.54748992]
[1768698228704,2.32145521,143.25,143.22,8.54748992]
[1768698229118,2.09995205,143.25,143.22,8.54748992]
[1768698231837,9.08078309,143.25,143.22,1.56523992]
[1768698233031,2.14902786,143.24,143.19,19.55873888]
[1768698233234,2.09995205,143.24,143.19,8.37383384]
[1768698233642,2.09995205,143.23,143.19,1.39041812]
[1768698233824,2.09995205,143.22,143.19,1.39041812]
[1768698235318,9.08243168,143.22,143.19,1.39041812]
[1768698236720,6.98247963,143.22,143.19,1.39041812]
[1768698236924,9.08243168,143.22,143.19,1.39041812]
[1768698239147,11.23145954,143.22,143.19,1.39041812]
[1768698242631,2.14902786,143.2,143.17,106.01174114]
[1768698242830,2.14902786,143.19,143.15,17.46405734]
[1768698243141,2.09995205,143.17,143.12,22.26694896]
[1768698243346,15.28,143.21,143.13,1.26961424]
[1768698243522,2.09995205,143.17,143.13,1.26961424]
[1768698243946,2.09995205,143.16,143.13,1.26961424]
[1768698244830,6.98529829,143.16,143.13,1.26961424]
[1768698245144,9.08525034,143.16,143.13,1.26961424]
[1768698245646,6.98529829,143.16,143.13,1.26961424]
[1768698245946,9.13432615,143.16,143.13,1.26961424]
[1768698254353,2.14902786,143.16,143.13,8.25626851]
[1768698254741,2.14902786,143.16,143.13,10.35528074]
[1768698259041,2.14902786,143.19,143.15,0.98818016]
[1768698259266,2.14902786,143.19,143.15,3.08719239]
[1768698259557,2.14902786,143.2,143.16,0.98818016]
[1768698260354,2.14902786,143.19,143.16,0.98818016]
[1768698261956,2.14902786,143.19,143.16,7.97334549]
[1768698262259,2.14902786,143.19,143.16,6.98516533]
[1768698263257,1.88706484,143.18,143.15,6.98551311]
[1768698270974,1.88706484,143.18,143.15,0.79526629]
[1768698272474,1.88706484,143.18,143.16,6.98519139]
[1768698273074,1.88706484,143.18,143.14,17.46541847]
[1768698273278,3.98607707,143.17,143.13,2.004865]
[1768698274379,8.8718976,143.17,143.13,8.99110742]
[1768698274572,10.97090983,143.17,143.13,8.99110742]
[1768698277794,8.8718976,143.17,143.13,8.99110742]
[1768698278670,8.8718976,143.17,143.14,1.86817831]
[1768698279389,1.90943851,143.19,143.16,1.86817831]
[1768698280793,1.90943851,143.19,143.16,1.83817832]
[1768698281604,1.90943851,143.19,143.16,8.82321065]
[1768698289972,1.90943851,143.19,143.16,10.92222288]
[1768698290501,1.90943851,143.19,143.16,8.82321065]
[1768698291830,1.90943851,143.21,143.18,1.86817831]
[1768698293468,1.82030449,143.2,143.17,6.9842263]
[1768698293894,1.82030449,143.21,143.18,8.65077562]
[1768698294276,1.82030449,143.2,143.17,8.65112165]
[1768698300420,8.80360688,143.2,143.17,8.65112165]
[1768698300601,8.80360688,143.2,143.17,1.66662139]
[1768698300804,10.90261911,143.2,143.17,1.66662139]
[1768698301102,10.90261911,143.2,143.17,8.65131186]
[1768698301415,1.82030449,143.17,143.13,8.6530999]
[1768698301711,6.98330239,143.2,143.13,8.6530999]
[1768698301712,3.91931672,143.16,143.13,8.6530999]
[1768698302614,1.82030449,143.15,143.13,6.98647851]
[1768698303198,1.82030449,143.16,143.13,6.98647851]
[1768698303406,3.91931672,143.15,143.12,6.9869871]
[1768698303724,2.09901223,143.14,143.11,1.66662139]
[1768698303901,3.91931672,143.13,143.1,8.75472496]
[1768698304095,2.09901223,143.13,143.1,8.75472496]
[1768698304332,3.91931672,143.14,143.11,1.66662139]
[1768698305223,3.91931672,143.13,143.1,0.1]
[1768698305520,3.91931672,143.11,143.07,8.75611013]
[1768698306313,1.82030449,143.1,143.07,8.75611013]
[1768698307903,3.91931672,143.1,143.07,8.75611013]
[1768698309026,10.90760253,143.1,143.07,1.76662139]
[1768698311732,3.91931672,143.09,143.07,0.1]
[1768698312228,1.82030449,143.08,143.07,0.1]
[1768698312930,10.90841372,143.08,143.05,1.76373656]
[1768698313630,10.84841371,143.08,143.05,0.09711517]
[1768698313827,9.08810923,143.08,143.05,0.09711517]
[1768698314506,6.989097,143.08,143.05,0.09711517]
[1768698314713,9.08810923,143.08,143.05,0.09711517]
[1768698315026,2.09901223,143.07,143.05,0.09711517]
[1768698315211,2.09901223,143.06,143.0,8.7592494]
[1768698315413,2.10257464,143.05,143.0,8.7592494]
[1768698315628,1.82030449,143.04,143.0,8.7592494]
[1768698316127,1.82030449,143.04,143.01,8.65906448]
[1768698318962,3.92287913,143.04,143.01,8.65906448]
[1768698319139,3.92287913,143.04,143.01,6.99244309]
[1768698319857,3.92287913,143.04,143.01,8.65906448]
[1768698320560,2.10257464,143.04,143.01,6.99244309]
[1768698320732,1.82030449,143.03,143.01,6.99244309]
[1768698321469,2.10257464,143.04,143.01,6.99244309]
[1768698321470,3.92287913,143.04,143.01,6.99244309]
[1768698322070,3.92287913,143.04,143.01,8.64437723]
[1768698322432,1.82030449,143.04,143.01,8.64437723]
[1768698323357,1.66181994,143.03,143.0,8.74475902]
[1768698323660,1.66181994,143.03,143.0,1.75193414]
[1768698323955,3.76439458,143.01,143.0,0.1]
[1768698324164,1.60181994,143.01,143.0,0.1]
[1768698324376,2.10257464,143.02,143.0,0.1]
[1768698326142,3.76439458,143.02,143.0,0.1]
[1768698328160,1.66181994,143.01,142.98,0.1]
[1768698328368,1.66181994,143.01,142.98,7.09395737]
[1768698328545,2.10257464,143.0,142.98,0.1]
[1768698329765,2.68973857,143.0,142.98,0.1]
[1768698330162,9.68286494,143.0,142.98,0.1]
[1768698330465,2.58973857,142.99,142.96,1.65193414]
[1768698330761,2.10257464,142.99,142.96,1.65193414]
[1768698330961,2.58521012,143.0,142.96,1.65193414]
[1768698331260,2.58521012,143.0,142.96,1.15193414]
[1768698331660,2.58521012,143.0,142.97,6.99432949]
[1768698334380,3.06779618,142.98,142.95,6.99530438]
[1768698334863,0.96522154,142.98,142.95,6.99530438]
[1768698335465,0.96103849,142.97,142.94,8.64541524]
[1768698336141,2.10257464,142.98,142.94,8.64541524]
[1768698336341,9.09671764,142.98,142.94,8.64541524]
[1768698336847,9.09620249,142.99,142.94,8.64541524]
[1768698337042,9.09620249,142.99,142.94,10.74798988]
[1768698337243,9.09620249,142.99,142.92,0.1]
[1768698337244,24.47736797,142.99,142.92,0.1]
[1768698337439,1.61614955,142.95,142.84,155.43053011]
[1768698337642,1.61614955,142.92,142.85,7.00035001]
[1768698337840,1.61614955,142.88,142.83,7.00133025]
[1768698338064,1.61614955,142.88,142.84,2.10257464]
[1768698338274,1.61614955,142.88,142.82,3.73461254]
[1768698338446,2.10257464,142.83,142.76,5.30180712]
[1768698338767,2.10257464,142.85,142.78,17.50845061]
[1768698338948,6.99790165,142.9,142.82,7.00161323]
[1768698339282,15.32,142.91,142.82,24.50616441]
[1768698339575,15.32,142.94,142.83,1.64954405]
[1768698339749,2.10257464,142.91,142.86,1.64954405]
[1768698339945,2.10257464,142.92,142.87,1.64954405]
[1768698340266,6.99643181,142.93,142.83,2.10257464]
[1768698340267,2.10257464,142.89,142.83,2.10257464]
[1768698340457,29.83159991,142.93,142.84,1.64954405]
[1768698340648,2.10257464,142.87,142.82,1.64954405]
[1768698341968,2.10257464,142.86,142.82,1.64954405]
[1768698343048,2.10257464,142.87,142.82,1.64954405]
[1768698343245,2.10257464,142.87,142.79,1.64954405]
[1768698343466,2.10257464,142.85,142.8,1.64954405]
[1768698343651,24.49553615,142.89,142.8,1.64954405]
[1768698343971,24.49553615,142.89,142.76,17.51165827]
[1768698343972,2.10257464,142.87,142.82,1.64954405]
[1768698344351,24.49436629,142.89,142.82,1.64954405]
[1768698344956,2.10257464,142.87,142.82,1.64954405]
[1768698345474,6.99839037,142.89,142.83,1.64954405]
[1768698345677,9.10096501,142.89,142.84,1.64954405]
[1768698345846,6.99814635,142.9,142.85,1.64954405]
[1768698346046,9.10072099,142.9,142.85,1.64954405]
[1768698346861,9.10072099,142.9,142.84,2.10257464]
[1768698346862,24.42004041,142.91,142.86,1.64954405]
[1768698347676,2.10257464,142.9,142.86,1.64954405]
[1768698347850,9.10056364,142.9,142.86,1.64954405]
[1768698348479,6.997989,142.9,142.86,1.64954405]
[1768698348686,9.10056364,142.9,142.86,1.64954405]
[1768698348974,2.10257464,142.9,142.86,1.64954405]
[1768698349545,22.31754783,142.91,142.86,1.64954405]
[1768698349751,15.32,142.91,142.86,1.64954405]
[1768698349946,15.32,142.91,142.87,1.64954405]
[1768698349947,17.42257464,142.91,142.87,1.64954405]
[1768698350147,2.10257464,142.91,142.87,1.64954405]
[1768698350588,2.10257464,142.92,142.87,1.64954405]
[1768698350767,6.99655989,142.93,142.87,1.64954405]
[1768698350968,2.10257464,142.92,142.87,1.64954405]
[1768698351893,2.10257464,142.92,142.88,1.64954405]
[1768698352375,2.10257464,142.93,142.88,1.64954405]
[1768698353062,2.10257464,142.93,142.89,1.57495115]
[1768698353572,22.31596908,142.94,142.89,1.57495115]
[1768698353757,24.41854372,142.94,142.89,1.57495115]
[1768698353958,22.31596908,142.94,142.89,1.57495115]
[1768698354155,24.41854372,142.94,142.89,1.57495115]
[1768698355175,17.42257464,142.94,142.9,1.57495115]
[1768698355778,15.32,142.94,142.9,1.57495115]
[1768698356779,9.09807294,142.95,142.9,1.57495115]
[1768698357164,2.10257464,142.95,142.91,1.57495115]
[1768698357364,22.31452138,142.97,142.91,1.57495115]
[1768698357577,2.10257464,142.96,142.91,1.57495115]
[1768698358584,2.10257464,142.94,142.91,1.57495115]
[1768698359368,2.10257464,142.95,142.91,1.57495115]
[1768698359569,15.32,142.97,142.92,1.57495115]
[1768698359768,2.10257464,142.99,142.94,1.57495115]
[1768698359981,2.10257464,142.99,142.94,1.54495118]
[1768698360673,17.44905267,143.0,142.94,1.54495118]
[1768698361190,2.10257464,143.0,142.94,9.09816326]
[1768698361872,0.02601742,142.96,142.86,1.57495115]
[1768698362080,2.10257464,142.94,142.91,1.57495115]
[1768698362394,2.10257464,142.93,142.89,8.57332194]
[1768698362881,2.10257464,142.92,142.9,1.57495115]
[1768698363462,2.10257464,142.93,142.9,1.57495115]
[1768698364567,24.47996489,142.98,142.91,1.57495115]
[1768698364774,2.10257464,142.94,142.91,1.57495115]
[1768698365583,24.47996489,142.98,142.91,1.57495115]
[1768698365757,2.10257464,142.94,142.91,1.57495115]
[1768698366485,6.99501309,142.96,142.91,1.57495115]
[1768698366787,2.10257464,142.94,142.91,1.57495115]
[1768698367781,2.10257464,142.93,142.88,6.99877998]
[1768698367986,2.10257464,142.93,142.89,1.57495115]
[1768698369071,2.10257464,142.92,142.89,1.57495115]
[1768698369269,2.10257464,142.9,142.87,1.57495115]
[1768698371793,2.10257464,142.88,142.85,1.57495115]
[1768698372180,6.99793095,142.9,142.85,1.57495115]
[1768698372500,24.4882603,142.93,142.85,1.57495115]
[1768698372796,2.10257464,142.88,142.85,1.57495115]
[1768698373892,6.99643181,142.93,142.86,1.57495115]
[1768698374096,2.10257464,142.94,142.86,1.57495115]
[1768698374097,6.99603238,142.94,142.86,1.57495115]
[1768698374300,2.10257464,142.92,142.86,1.57495115]
[1768698374687,2.10257464,142.92,142.88,1.57495115]
[1768698375299,6.99603238,142.94,142.88,1.57495115]
[1768698375599,2.10629836,142.92,142.88,1.57495115]
[1768698379507,2.10629836,142.92,142.89,1.57495115]
[1768698380204,2.10629836,142.92,142.88,1.57495115]
[1768698380712,2.10629836,142.94,142.89,1.57495115]
[1768698380899,2.10629836,142.94,142.89,6.99809637]
[1768698381105,2.10629836,142.94,142.9,1.57495115]
[1768698386110,2.10629836,142.94,142.91,1.60824218]
[1768698392999,2.10629836,142.94,142.87,8.60740464]
[1768698393000,9.10246318,142.94,142.87,8.60740464]
[1768698393322,9.10246318,142.94,142.88,1.60824218]
[1768698393323,2.10629836,142.91,142.88,1.60824218]
[1768698393511,2.10629836,142.91,142.89,1.60824218]
[1768698395526,50.29025485,142.98,142.89,1.60824218]
[1768698395527,24.48066027,142.97,142.89,1.60824218]
[1768698395697,2.10629836,142.92,142.89,1.60824218]
[1768698395903,2.10629836,142.91,142.89,1.60824218]
[1768698398917,6.99670763,142.93,142.89,1.60824218]
[1768698399126,2.10629836,142.91,142.89,1.60824218]
[1768698403533,2.10629836,142.92,142.89,1.60824218]
[1768698403740,6.99639577,142.94,142.89,1.60824218]
[1768698403945,1.55612789,142.97,142.92,1.55794994]
[1768698404240,1.55612789,142.96,142.92,1.55794994]
[1768698405239,1.55612789,142.96,142.92,8.55466225]
[1768698406539,1.55612789,142.96,142.93,1.55794994]
[1768698406731,9.10046161,142.98,142.93,1.55794994]
[1768698406934,1.55612789,142.97,142.93,1.55794994]
[1768698407328,1.55612789,142.99,142.93,2.10629836]
[1768698407537,1.55612789,143.01,142.97,1.55794994]
[1768698408639,1.55612789,143.01,142.98,6.99398517]
[1768698408841,1.55612789,143.01,142.98,6.96398518]
[1768698409042,3.66242625,143.02,142.98,8.52193512]
[1768698409621,3.66242625,143.02,142.98,8.49193516]
[1768698410053,1.55612789,143.02,142.98,8.49193516]
[1768698410346,3.66242625,143.02,142.98,8.49193516]
[1768698410731,1.55612789,143.01,142.98,1.55794994]
[1768698413735,3.82858857,143.02,142.98,8.55182295]
[1768698414337,1.72229021,143.01,142.98,6.99387301]
[1768698414642,1.72229021,143.01,142.97,8.6058335]